fUSD/lending_fUSD_20250326
["ID","MTS","AMOUNT","RATE_DAILY","PERIOD"]
[356702650,1742989877796,-500.0,0.00041917,30]
[356702651,1742989877806,-500.0,0.00041917,30]
[356702652,1742989877816,-520.40094021,0.00041917,30]
[356702653,1742989877826,-500.0,0.00041917,30]
[356702654,1742989877836,-500.0,0.00041917,30]
[356702655,1742989877846,-523.18653883,0.00041917,30]
[356702656,1742989877856,-500.0,0.00041917,30]
[356702657,1742989877867,-1957.89,0.00041917,30]
[356702658,1742989877877,-500.0,0.00041917,30]
[356702659,1742989877888,-500.0,0.00041917,30]
[356702660,1742989877899,-1297.96,0.00041917,30]
[356702661,1742989877910,-500.0,0.00041917,30]
[356702662,1742989877921,-500.0,0.00041917,30]
[356702663,1742989877932,-500.0,0.00041917,30]
[356702664,1742989877942,-500.0,0.00041917,30]
[356702665,1742989877953,-500.0,0.00041917,30]
[356702666,1742989877963,-500.0,0.00041917,30]
[356702667,1742989877973,-500.0,0.00041917,7]
[356702668,1742989877984,-500.0,0.00041917,30]
[356702669,1742989877994,-500.0,0.00041917,30]
[356702670,1742989878005,-500.0,0.00041917,30]
[356702671,1742989878014,-166.10754005,0.00041917,30]
[356702672,1742989878026,-500.0,0.00041917,30]
[356702673,1742989878036,-500.0,0.00041917,30]
[356702674,1742989878047,-535.69197515,0.00041917,30]
[356702675,1742989878057,-635.80005972,0.00041917,30]
[356702676,1742989878067,-500.0,0.00041917,30]
[356702677,1742989878077,-500.0,0.00041917,30]
[356702678,1742989878088,-500.0,0.00041917,30]
[356702679,1742989878102,-500.0,0.00041917,30]
[356702680,1742989878232,-500.0,0.00041917,30]
[356702681,1742989878243,-528.21006301,0.00041917,30]
[356702682,1742989878253,-500.0,0.00041917,30]
[356702683,1742989878262,-500.0,0.00041917,30]
[356702684,1742989878272,-500.0,0.00041917,30]
[356702685,1742989878281,-866.15,0.00041917,30]
[356702686,1742989878291,-500.0,0.00041917,30]
[356702687,1742989878300,-1516.35842902,0.00041917,30]
[356702688,1742989878309,-500.0,0.00041917,30]
[356702689,1742989878318,-521.56383677,0.00041917,30]
[356702690,1742989878328,-500.0,0.00041917,30]
[356702691,1742989878337,-500.0,0.00041917,30]
[356702692,1742989878347,-500.0,0.00041917,30]
[356702693,1742989878356,-519.06992349,0.00041917,30]
[356702694,1742989878365,-610.18189929,0.00041917,30]
[356702695,1742989878374,-563.25277553,0.00041917,30]
[356702696,1742989878384,-1816.31,0.00041917,30]
[356702697,1742989878393,-500.0,0.00041917,30]
[356702698,1742989878403,-500.0,0.00041917,30]
[356702699,1742989878413,-500.0,0.00041917,30]
[356702700,1742989878423,-517.53301376,0.00041917,30]
[356702701,1742989878432,-500.0,0.00041917,30]
[356702702,1742989878442,-778.66,0.00041917,30]
[356702703,1742989878452,-500.0,0.00041917,30]
[356702704,1742989878462,-563.94,0.00041917,30]
[356702705,1742989878472,-500.0,0.00041917,30]
[356702706,1742989878482,-500.0,0.00041917,30]
[356702707,1742989878491,-538.25393287,0.00041917,30]
[356702708,1742989878502,-500.0,0.00041917,30]
[356702709,1742989878513,-589.63622228,0.00041917,30]
[356702710,1742989878523,-216.12440227,0.00041917,30]
[356702711,1742989878533,-500.0,0.00041917,30]
[356702712,1742989878542,-531.91230622,0.00041917,30]
[356702713,1742989878552,-500.0,0.00041917,30]
[356702714,1742989878562,-628.41577275,0.00041917,30]
[356702715,1742989878572,-500.0,0.00041917,30]
[356702716,1742989878582,-500.0,0.00041917,30]
[356702717,1742989878592,-3131.81,0.00041917,30]
[356702718,1742989878602,-190.85436334,0.00041917,30]
[356702719,1742989878612,-500.0,0.00041917,30]
[356702720,1742989878621,-500.0,0.00041917,30]
[356702721,1742989878631,-574.62001526,0.00041917,30]
[356702722,1742989878640,-500.0,0.00041917,30]
[356702723,1742989878650,-500.0,0.00041917,30]
[356702724,1742989878660,-500.0,0.00041917,30]
[356702725,1742989878670,-500.0,0.00041917,30]
[356702726,1742989878681,-500.0,0.00041917,30]
[356702727,1742989878691,-536.45881252,0.00041917,30]
[356702728,1742989878701,-500.0,0.00041917,30]
[356702729,1742989878711,-500.0,0.00041917,30]
[356702730,1742989878721,-500.0,0.00041917,30]
[356702731,1742989878731,-230.59557235,0.00041917,30]
[356702732,1742989878742,-500.0,0.00041917,30]
[356702733,1742989878752,-500.0,0.00041917,30]
[356702734,1742989878762,-180.16162027,0.00041917,30]
[356702735,1742989878772,-651.46,0.00041917,7]
[356702736,1742989878782,-500.0,0.00041917,2]
[356702737,1742989878792,-547.85404106,0.00041917,30]
[356702738,1742989878801,-500.0,0.00041917,30]
[356702739,1742989878811,-500.0,0.00041917,2]
[356702740,1742989878822,-500.0,0.00041917,30]
[356702741,1742989878832,-500.0,0.00041917,30]
[356702742,1742989878842,-500.0,0.00041917,30]
[356702743,1742989878852,-184.44241724,0.00041917,30]
[356702744,1742989878862,-219.67524437,0.00041917,30]
[356702745,1742989878872,-700.0,0.0004197,3]
[356702746,1742989878882,-401.36528076,0.0004197,3]
[356702747,1742989878891,-500.0,0.00041973,31]
[356702748,1742989878900,-500.0,0.00041973,31]
[356702749,1742989878910,-500.0,0.00041973,31]
[356702750,1742989878920,-500.0,0.00041973,31]
[356702751,1742989878929,-500.0,0.00041973,31]
[356702752,1742989878939,-500.0,0.00041973,31]
[356702753,1742989878950,-500.0,0.00041973,31]
[356702754,1742989878960,-500.0,0.00041973,31]
[356702755,1742989878970,-500.0,0.00041973,31]
[356702756,1742989878980,-500.0,0.00041973,31]
[356702757,1742989878990,-198.8135175,0.00041973,31]
[356702758,1742989878999,-500.0,0.00041973,31]
[356702759,1742989879010,-500.0,0.00041973,31]
[356702760,1742989879019,-500.0,0.00041973,31]
[356702761,1742989879029,-205.0,0.0004199,2]
[356702762,1742989879038,-50000.0,0.00042,120]
[356702763,1742989879048,-42702.03601973,0.00042,120]
[356702764,1742989879057,-200.0,0.00042,120]
[356702765,1742989879068,-165.0,0.00042,120]
[356702766,1742989879078,-4775.8490136,0.00042,120]
[356702767,1742989879089,-3048.7,0.00042,120]
[356702768,1742989879103,-261.73,0.00042,120]
[356702769,1742989879113,-2682.11,0.00042,120]
[356702770,1742989879122,-5278.67,0.00042,120]
[356702771,1742989879132,-254.64,0.00042,120]
[356702772,1742989879143,-265.71,0.00042,120]
[356702773,1742989879152,-691.0,0.00042,120]
[356702774,1742989879162,-244.92,0.00042,120]
[356702775,1742989879173,-295.4,0.00042,120]
[356702776,1742989879183,-707.01,0.00042,120]
[356702777,1742989879193,-2507.29,0.00042,120]
[356702778,1742989879202,-596.9295804,0.00042041,6]
[356702779,1742989879212,-150.0,0.00042089,10]
[356702780,1742989879222,-161.3413666,0.00042125,28]
[356702781,1742989879231,-150.0,0.00042171,10]
[356702782,1742989879240,-1000.0,0.0004218,2]
[356702783,1742989879250,-744.21442372,0.00042186,7]
[356702784,1742989879260,-150.0,0.0004219,7]
[356702785,1742989879269,-488.388934,0.00042191,30]
[356702786,1742989879278,-348.343309,0.00042191,30]
[356702787,1742989879288,-500.0,0.00042191,30]
[356702788,1742989879297,-500.0,0.00042191,30]
[356702789,1742989879307,-2773.69,0.00042191,30]
[356702790,1742989879316,-504.52203978,0.00042191,30]
[356702791,1742989879325,-500.0,0.00042191,30]
[356702792,1742989879334,-500.0,0.00042191,2]
[356702793,1742989879344,-436.56,0.00042191,30]
[356702794,1742989879353,-552.92,0.00042191,30]
[356702795,1742989879363,-500.0,0.00042191,30]
[356702796,1742989879372,-669.0,0.00042191,30]
[356702797,1742989879381,-500.0,0.00042191,30]
[356702798,1742989879391,-779.48,0.00042191,30]
[356702799,1742989879400,-500.0,0.00042191,30]
[356702800,1742989879410,-2314.65,0.00042191,30]
[356702801,1742989879418,-1144.12,0.00042191,30]
[356702802,1742989879428,-500.0,0.00042191,30]
[356702803,1742989879437,-500.0,0.00042191,30]
[356702804,1742989879447,-2936.97,0.00042191,30]
[356702805,1742989879457,-500.0,0.00042191,120]
[356702806,1742989879467,-500.0,0.00042191,30]
[356702807,1742989879477,-500.0,0.00042191,2]
[356702808,1742989879487,-500.0,0.00042191,30]
[356702809,1742989879497,-500.0,0.00042191,30]
[356702810,1742989879507,-500.0,0.00042191,30]
[356702811,1742989879523,-500.0,0.00042191,30]
[356702812,1742989879533,-538.61,0.00042191,10]
[356702813,1742989879543,-500.0,0.00042191,30]
[356702814,1742989879553,-500.0,0.00042191,30]
[356702815,1742989879563,-818.4,0.00042191,30]
[356702816,1742989879572,-500.0,0.00042191,30]
[356702817,1742989879581,-500.0,0.00042191,30]
[356702818,1742989879592,-500.0,0.00042191,30]
[356702819,1742989879602,-1205.22,0.00042191,30]
[356702820,1742989879612,-500.0,0.00042191,30]
[356702821,1742989879622,-500.0,0.00042191,30]
[356702822,1742989879632,-634.91780891,0.00042191,30]
[356702823,1742989879641,-500.0,0.00042191,30]
[356702824,1742989879651,-500.0,0.00042191,30]
[356702825,1742989879661,-500.0,0.00042191,30]
[356702826,1742989879671,-500.0,0.00042191,30]
[356702827,1742989879681,-500.0,0.00042191,30]
[356702828,1742989879690,-180.84395147,0.00042191,30]
[356702829,1742989879700,-500.0,0.00042191,30]
[356702830,1742989879709,-500.0,0.00042191,30]
[356702831,1742989879718,-500.0,0.00042191,30]
[356702832,1742989879728,-500.0,0.00042191,30]
[356702833,1742989879738,-569.1315067,0.00042191,30]
[356702834,1742989879749,-500.0,0.00042191,30]
[356702835,1742989879759,-500.0,0.00042191,30]
[356702836,1742989879768,-500.0,0.00042191,30]
[356702837,1742989879778,-500.0,0.00042191,30]
[356702838,1742989879788,-500.0,0.00042191,30]
[356702839,1742989879798,-500.0,0.00042191,30]
[356702840,1742989879807,-500.0,0.00042191,30]
[356702841,1742989879816,-507.45891299,0.00042191,30]
[356702842,1742989879825,-1234.37,0.00042191,30]
[356702843,1742989879835,-500.0,0.00042191,30]
[356702844,1742989879844,-779.98,0.00042191,30]
[356702845,1742989879853,-500.0,0.00042191,30]
[356702846,1742989879863,-7474.69,0.00042191,2]
[356702847,1742989879872,-500.0,0.00042191,30]
[356702848,1742989879882,-495.92164429,0.00042191,30]
[356702849,1742989879892,-500.0,0.00042191,30]
[356702850,1742989879902,-500.0,0.00042191,30]
[356702851,1742989879912,-174.57520106,0.00042191,30]
[356702852,1742989879921,-500.0,0.00042191,30]
[356702853,1742989879931,-500.0,0.00042191,30]
[356702854,1742989879941,-500.0,0.00042191,30]
[356702855,1742989879951,-500.0,0.00042191,30]
[356702856,1742989879960,-500.0,0.00042191,30]
[356702857,1742989879970,-5732.33,0.00042191,30]
[356702858,1742989879980,-1709.94,0.00042191,30]
[356702859,1742989879990,-500.0,0.00042191,30]
[356702860,1742989879999,-500.0,0.00042191,30]
[356702861,1742989880009,-500.0,0.00042191,30]
[356702862,1742989880019,-581.86054341,0.00042191,30]
[356702863,1742989880028,-566.35,0.00042191,30]
[356702864,1742989880037,-902.11,0.00042191,30]
[356702865,1742989880047,-202.11420858,0.00042191,30]
[356702866,1742989880056,-500.0,0.00042191,30]
[356702867,1742989880065,-500.0,0.00042191,30]
[356702868,1742989880074,-500.0,0.00042191,30]
[356702869,1742989880083,-500.0,0.00042191,30]
[356702870,1742989880100,-1332.55,0.00042191,30]
[356702871,1742989880110,-500.0,0.00042191,30]
[356702872,1742989880120,-500.0,0.00042191,30]
[356702873,1742989880129,-534.44,0.00042191,30]
[356702874,1742989880140,-500.0,0.00042191,30]
[356702875,1742989880153,-246.29283113,0.00042191,30]
[356702876,1742989880162,-500.0,0.00042191,30]
[356702877,1742989880173,-500.0,0.00042191,30]
[356702878,1742989880183,-500.0,0.00042191,30]
[356702879,1742989880192,-1162.51,0.00042191,30]
[356702880,1742989880201,-500.0,0.00042191,30]
[356702881,1742989880211,-464.47235632,0.00042191,30]
[356702882,1742989880220,-299.14279631,0.00042191,30]
[356702883,1742989880229,-410.47972825,0.00042191,30]
[356702884,1742989880239,-500.0,0.00042191,30]
[356702885,1742989880248,-500.0,0.00042191,30]
[356702886,1742989880258,-500.0,0.00042191,30]
[356702887,1742989880267,-522.25514885,0.00042191,30]
[356702888,1742989880277,-5897.06,0.00042191,30]
[356702889,1742989880286,-245.74252341,0.00042191,30]
[356702890,1742989880296,-500.0,0.00042191,30]
[356702891,1742989880305,-474.91229388,0.00042191,30]
[356702892,1742989880315,-500.0,0.00042191,30]
[356702893,1742989880323,-500.0,0.00042191,30]
[356702894,1742989880333,-500.0,0.00042191,30]
[356702895,1742989880342,-296.27601732,0.00042191,30]
[356702896,1742989880352,-500.0,0.00042191,30]
[356702897,1742989880361,-500.0,0.00042191,30]
[356702898,1742989880371,-500.0,0.00042191,30]
[356702899,1742989880380,-530.8,0.00042191,30]
[356702900,1742989880390,-500.0,0.00042191,30]
[356702901,1742989880399,-520.06768263,0.00042191,30]
[356702902,1742989880407,-1267.25,0.00042191,30]
[356702903,1742989880416,-486.77434909,0.00042191,30]
[356702904,1742989880425,-634.70010097,0.00042191,30]
[356702905,1742989880433,-500.0,0.00042191,30]
[356702906,1742989880442,-500.0,0.00042191,30]
[356702907,1742989880451,-500.0,0.00042191,30]
[356702908,1742989880460,-171.61963047,0.00042191,30]
[356702909,1742989880470,-500.0,0.00042191,30]
[356702910,1742989880479,-63028.24,0.00042191,30]
[356702911,1742989880489,-500.0,0.00042191,30]
[356702912,1742989880497,-500.0,0.00042191,30]
[356702913,1742989880507,-517.52,0.00042191,30]
[356702914,1742989880516,-500.0,0.00042191,30]
[356702915,1742989880526,-407.14210123,0.00042191,30]
[356702916,1742989880534,-500.0,0.00042191,30]
[356702917,1742989880544,-500.0,0.00042191,30]
[356702918,1742989880554,-500.0,0.00042191,30]
[356702919,1742989880563,-500.0,0.00042191,30]
[356702920,1742989880572,-500.0,0.00042191,30]
[356702921,1742989880582,-500.0,0.00042191,30]
[356702922,1742989880591,-500.0,0.00042191,30]
[356702923,1742989880601,-1957.89,0.00042191,30]
[356702924,1742989880611,-500.0,0.00042191,30]
[356702925,1742989880621,-500.0,0.00042191,30]
[356702926,1742989880631,-1297.96,0.00042191,30]
[356702927,1742989880640,-500.0,0.00042191,30]
[356702928,1742989880649,-259.49722622,0.00042191,30]
[356702929,1742989880659,-547.26009923,0.00042191,30]
[356702930,1742989880669,-500.0,0.00042191,30]
[356702931,1742989880678,-500.0,0.00042191,30]
[356702932,1742989880688,-500.0,0.00042191,30]
[356702933,1742989880698,-500.0,0.00042191,7]
[356702934,1742989880707,-500.0,0.00042191,30]
[356702935,1742989880717,-500.0,0.00042191,30]
[356702936,1742989880727,-500.0,0.00042191,30]
[356702937,1742989880737,-500.0,0.00042191,30]
[356702938,1742989880850,-500.0,0.00042191,30]
[356702939,1742989880861,-500.0,0.00042191,30]
[356702940,1742989880870,-500.0,0.00042191,30]
[356702941,1742989880880,-500.0,0.00042191,30]
[356702942,1742989880889,-500.0,0.00042191,30]
[356702943,1742989880898,-500.0,0.00042191,30]
[356702944,1742989880907,-500.0,0.00042191,30]
[356702945,1742989880917,-500.0,0.00042191,30]
[356702946,1742989880926,-866.15,0.00042191,30]
[356702947,1742989880935,-638.21319848,0.00042191,30]
[356702948,1742989880945,-500.0,0.00042191,30]
[356702949,1742989880955,-500.0,0.00042191,30]
[356702950,1742989880964,-500.0,0.00042191,30]
[356702951,1742989880973,-500.0,0.00042191,30]
[356702952,1742989880982,-500.0,0.00042191,30]
[356702953,1742989880991,-1816.31,0.00042191,30]
[356702954,1742989881000,-500.0,0.00042191,30]
[356702955,1742989881009,-500.0,0.00042191,30]
[356702956,1742989881019,-500.0,0.00042191,30]
[356702957,1742989881028,-500.0,0.00042191,30]
[356702958,1742989881037,-778.66,0.00042191,30]
[356702959,1742989881047,-500.0,0.00042191,30]
[356702960,1742989881057,-563.94,0.00042191,30]
[356702961,1742989881066,-582.44592281,0.00042191,30]
[356702962,1742989881076,-520.8751059,0.00042191,30]
[356702963,1742989881086,-500.0,0.00042191,30]
[356702964,1742989881099,-500.0,0.00042191,30]
[356702965,1742989881108,-500.0,0.00042191,30]
[356702966,1742989881118,-500.0,0.00042191,30]
[356702967,1742989881128,-500.0,0.00042191,30]
[356702968,1742989881138,-3131.81,0.00042191,30]
[356702969,1742989881147,-500.0,0.00042191,30]
[356702970,1742989881156,-500.0,0.00042191,30]
[356702971,1742989881165,-500.0,0.00042191,30]
[356702972,1742989881176,-500.0,0.00042191,30]
[356702973,1742989881185,-500.0,0.00042191,30]
[356702974,1742989881195,-371.86226721,0.00042191,30]
[356702975,1742989881204,-500.0,0.00042191,30]
[356702976,1742989881213,-500.0,0.00042191,30]
[356702977,1742989881222,-500.0,0.00042191,30]
[356702978,1742989881231,-290.71756022,0.00042191,30]
[356702979,1742989881241,-500.0,0.00042191,30]
[356702980,1742989881250,-228.52204004,0.00042191,30]
[356702981,1742989881260,-651.46,0.00042191,7]
[356702982,1742989881269,-500.0,0.00042191,2]
[356702983,1742989881279,-224.73864035,0.00042191,30]
[356702984,1742989881287,-500.0,0.00042191,2]
[356702985,1742989881297,-369.42821262,0.00042191,30]
[356702986,1742989881307,-500.0,0.00042191,30]
[356702987,1742989881317,-500.0,0.00042191,30]
[356702988,1742989881327,-150.0,0.00042195,7]
[356702989,1742989881336,-976363.94838836,0.00042196,30]
[356702990,1742989881345,-971.1,0.000422,2]
[356702991,1742989881355,-1198.09,0.000422,2]
[356702992,1742989881364,-18479.01,0.000422,2]
[356702993,1742989881373,-150.0,0.00042253,10]
[356702994,1742989881383,-164.0,0.00042288,90]
[356702995,1742989881392,-150.0,0.00042336,10]
[356702996,1742989881401,-150.0,0.00042418,10]
[356702997,1742989881411,-291878.412349,0.0004242,45]
[356702998,1742989881420,-252.93173571,0.00042465,2]
[356702999,1742989881429,-488.388934,0.00042465,30]
[356703000,1742989881439,-348.343309,0.00042465,30]
[356703001,1742989881448,-166.033251,0.00042465,30]
[356703002,1742989881458,-500.0,0.00042465,30]
[356703003,1742989881468,-500.0,0.00042465,30]
[356703004,1742989881478,-2773.69,0.00042465,30]
[356703005,1742989881487,-507.2516643,0.00042465,30]
[356703006,1742989881496,-500.0,0.00042465,2]
[356703007,1742989881506,-552.92,0.00042465,30]
[356703008,1742989881515,-509.73524179,0.00042465,30]
[356703009,1742989881524,-669.0,0.00042465,30]
[356703010,1742989881534,-500.0,0.00042465,30]
[356703011,1742989881544,-779.48,0.00042465,30]
[356703012,1742989881553,-502.86182606,0.00042465,30]
[356703013,1742989881563,-2314.65,0.00042465,30]
[356703014,1742989881572,-1144.12,0.00042465,30]
[356703015,1742989881582,-381.65875932,0.00042465,30]
[356703016,1742989881592,-500.0,0.00042465,30]
[356703017,1742989881602,-2936.97,0.00042465,30]
[356703018,1742989881612,-397.04345567,0.00042465,120]
[356703019,1742989881621,-500.0,0.00042465,30]
[356703020,1742989881632,-490.8948228,0.00042465,2]
[356703021,1742989881641,-500.0,0.00042465,30]
[356703022,1742989881650,-500.0,0.00042465,30]
[356703023,1742989881659,-500.0,0.00042465,30]
[356703024,1742989881668,-500.0,0.00042465,30]
[356703025,1742989881677,-538.61,0.00042465,10]
[356703026,1742989881687,-500.0,0.00042465,30]
[356703027,1742989881697,-500.0,0.00042465,30]
[356703028,1742989881706,-818.4,0.00042465,30]
[356703029,1742989881715,-500.0,0.00042465,30]
[356703030,1742989881725,-500.0,0.00042465,30]
[356703031,1742989881734,-500.0,0.00042465,30]
[356703032,1742989881744,-1205.22,0.00042465,30]
[356703033,1742989881753,-500.0,0.00042465,30]
[356703034,1742989881763,-500.0,0.00042465,30]
[356703035,1742989881772,-500.0,0.00042465,30]
[356703036,1742989881783,-500.0,0.00042465,30]
[356703037,1742989881792,-500.0,0.00042465,30]
[356703038,1742989881802,-500.0,0.00042465,30]
[356703039,1742989881811,-317.41043403,0.00042465,30]
[356703040,1742989881820,-500.0,0.00042465,30]
[356703041,1742989881830,-500.0,0.00042465,30]
[356703042,1742989881839,-500.0,0.00042465,30]
[356703043,1742989881849,-500.0,0.00042465,30]
[356703044,1742989881858,-288.21470187,0.00042465,30]
[356703045,1742989881868,-531.0893097,0.00042465,30]
[356703046,1742989881877,-500.0,0.00042465,30]
[356703047,1742989881887,-500.0,0.00042465,30]
[356703048,1742989881896,-500.0,0.00042465,30]
[356703049,1742989881905,-515.40136077,0.00042465,30]
[356703050,1742989881914,-500.0,0.00042465,30]
[356703051,1742989881924,-1234.37,0.00042465,30]
[356703052,1742989881934,-500.0,0.00042465,30]
[356703053,1742989881944,-779.98,0.00042465,30]
[356703054,1742989881954,-500.0,0.00042465,30]
[356703055,1742989881964,-7474.69,0.00042465,2]
[356703056,1742989881973,-187.20426325,0.00042465,30]
[356703057,1742989881983,-500.0,0.00042465,30]
[356703058,1742989881992,-500.0,0.00042465,30]
[356703059,1742989882002,-590.07191093,0.00042465,30]
[356703060,1742989882011,-500.0,0.00042465,30]
[356703061,1742989882020,-649.58468267,0.00042465,30]
[356703062,1742989882030,-531.2680175,0.00042465,30]
[356703063,1742989882039,-500.0,0.00042465,30]
[356703064,1742989882049,-5732.33,0.00042465,30]
[356703065,1742989882058,-1709.94,0.00042465,30]
[356703066,1742989882068,-500.0,0.00042465,30]
[356703067,1742989882078,-540.99059775,0.00042465,30]
[356703068,1742989882087,-536.57117214,0.00042465,30]
[356703069,1742989882102,-566.35,0.00042465,30]
[356703070,1742989882111,-902.11,0.00042465,30]
[356703071,1742989882121,-233.95746871,0.00042465,30]
[356703072,1742989882131,-500.0,0.00042465,30]
[356703073,1742989882141,-571.74738645,0.00042465,30]
[356703074,1742989882151,-500.0,0.00042465,30]
[356703075,1742989882160,-1332.55,0.00042465,30]
[356703076,1742989882172,-500.0,0.00042465,30]
[356703077,1742989882182,-500.0,0.00042465,30]
[356703078,1742989882192,-534.44,0.00042465,30]
[356703079,1742989882201,-500.0,0.00042465,30]
[356703080,1742989882211,-172.77939717,0.00042465,30]
[356703081,1742989882221,-500.0,0.00042465,30]
[356703082,1742989882230,-500.0,0.00042465,30]
[356703083,1742989882239,-1162.51,0.00042465,30]
[356703084,1742989882249,-500.0,0.00042465,30]
[356703085,1742989882258,-543.85362391,0.00042465,30]
[356703086,1742989882267,-500.0,0.00042465,30]
[356703087,1742989882276,-305.3618189,0.00042465,30]
[356703088,1742989882286,-5897.06,0.00042465,30]
[356703089,1742989882296,-578.0960823,0.00042465,30]
[356703090,1742989882305,-546.10885784,0.00042465,30]
[356703091,1742989882314,-500.0,0.00042465,30]
[356703092,1742989882323,-599.8496571,0.00042465,30]
[356703093,1742989882333,-500.0,0.00042465,30]
[356703094,1742989882341,-594.21487328,0.00042465,30]
[356703095,1742989882350,-500.0,0.00042465,30]
[356703096,1742989882361,-530.8,0.00042465,30]
[356703097,1742989882370,-500.0,0.00042465,30]
[356703098,1742989882380,-1267.25,0.00042465,30]
[356703099,1742989882389,-552.80191621,0.00042465,30]
[356703100,1742989882398,-328.68779323,0.00042465,30]
[356703101,1742989882407,-500.0,0.00042465,30]
[356703102,1742989882416,-518.54183236,0.00042465,30]
[356703103,1742989882426,-63028.24,0.00042465,30]
[356703104,1742989882442,-500.0,0.00042465,30]
[356703105,1742989882454,-539.66855174,0.00042465,30]
[356703106,1742989882463,-517.52,0.00042465,30]
[356703107,1742989882473,-642.94722381,0.00042465,30]
[356703108,1742989882482,-500.0,0.00042465,30]
[356703109,1742989882491,-500.0,0.00042465,30]
[356703110,1742989882501,-226.76581624,0.00042465,30]
[356703111,1742989882510,-500.0,0.00042465,30]
[356703112,1742989882519,-550.00461073,0.00042465,30]
[356703113,1742989882528,-261.64582003,0.00042465,30]
[356703114,1742989882537,-500.0,0.00042465,30]
[356703115,1742989882546,-500.0,0.00042465,30]
[356703116,1742989882555,-1957.89,0.00042465,30]
[356703117,1742989882565,-500.0,0.00042465,30]
[356703118,1742989882574,-1297.96,0.00042465,30]
[356703119,1742989882582,-500.0,0.00042465,30]
[356703120,1742989882592,-595.9593309,0.00042465,30]
[356703121,1742989882601,-500.0,0.00042465,30]
[356703122,1742989882611,-466.0114026,0.00042465,30]
[356703123,1742989882620,-500.0,0.00042465,7]
[356703124,1742989882629,-500.0,0.00042465,30]
[356703125,1742989882638,-582.96181375,0.00042465,30]
[356703126,1742989882648,-500.0,0.00042465,30]
[356703127,1742989882657,-500.0,0.00042465,30]
[356703128,1742989882667,-500.0,0.00042465,30]
[356703129,1742989882676,-601.17891175,0.00042465,30]
[356703130,1742989882686,-500.0,0.00042465,30]
[356703131,1742989882696,-500.0,0.00042465,30]
[356703132,1742989882705,-500.0,0.00042465,30]
[356703133,1742989882716,-500.0,0.00042465,30]
[356703134,1742989882726,-505.15324072,0.00042465,30]
[356703135,1742989882736,-648.74220009,0.00042465,30]
[356703136,1742989882746,-866.15,0.00042465,30]
[356703137,1742989882756,-433.63229994,0.00042465,30]
[356703138,1742989882765,-500.0,0.00042465,30]
[356703139,1742989882775,-500.0,0.00042465,30]
[356703140,1742989882784,-500.0,0.00042465,30]
[356703141,1742989882794,-589.59585416,0.00042465,30]
[356703142,1742989882803,-1816.31,0.00042465,30]
[356703143,1742989882812,-529.70948971,0.00042465,30]
[356703144,1742989882822,-256.07659115,0.00042465,30]
[356703145,1742989882831,-365.17026894,0.00042465,30]
[356703146,1742989882841,-620.10432644,0.00042465,30]
[356703147,1742989882850,-778.66,0.00042465,30]
[356703148,1742989882859,-500.0,0.00042465,30]
[356703149,1742989882869,-563.94,0.00042465,30]